bitfinex/quotes_SOLUSD_20220306
["timestamp","ask_amount","ask_price","bid_price","bid_amount"]
[1646579534186,1.54911284,87.117,87.08,17.2269]
[1646579534382,1.54911284,87.118,87.08,17.2269]
[1646579534584,1.54911284,87.119,87.08,17.2269]
[1646579534987,1.54911284,87.12,87.08,17.2269]
[1646579535186,1.54911284,87.12,87.08,31.0069]
[1646579535384,5.74,87.136,87.08,31.0069]
[1646579535385,1.54911284,87.122,87.08,37.0069]
[1646579535584,1.54911284,87.123,87.08,37.0069]
[1646579535885,1.54911284,87.124,87.08,37.0069]
[1646579536084,1.54911284,87.123,87.08,37.0069]
[1646579536283,1.54911284,87.13,87.08,37.0069]
[1646579536984,1.54911284,87.131,87.08,37.0069]
[1646579537284,1.54911284,87.13,87.08,37.0069]
[1646579537484,1.54911284,87.13,87.08,23.2269]
[1646579537683,23.758,87.137,87.08,23.2269]
[1646579537684,1.54911284,87.129,87.08,17.2269]
[1646579538090,1.54911284,87.13,87.08,17.2269]
[1646579539088,1.54911284,87.131,87.08,17.2269]
[1646579539486,1.54911284,87.134,87.08,31.0069]
[1646579539686,1.54911284,87.134,87.08,54.73598384]
[1646579541287,1.54911284,87.135,87.08,54.73598384]
[1646579542189,25.30711284,87.137,87.08,54.73598384]
[1646579542993,23.758,87.137,87.08,54.73598384]
[1646579544192,1.54911284,87.138,87.08,54.73598384]
[1646579544590,30.49946643,87.157,87.08,54.73598384]
[1646579544591,1.54911284,87.139,87.08,54.73598384]
[1646579545197,1.54911284,87.14,87.08,54.73598384]
[1646579545390,1.54911284,87.141,87.08,54.73598384]
[1646579545594,1.54911284,87.14,87.08,54.73598384]
[1646579547292,5.739,87.139,87.08,13.78]
[1646579547592,1.54911284,87.133,87.067,24.1334705]
[1646579547794,25.33389563,87.131,87.067,24.1334705]
[1646579547994,0.5030894,87.129,87.067,24.1334705]
[1646579548192,0.52758464,87.127,87.067,24.1334705]
[1646579548593,0.52758464,87.127,87.08,17.2297]
[1646579548894,23.5685,87.128,87.063,24.8313]
[1646579548895,1.54911284,87.123,87.063,24.8313]
[1646579549093,17.2343,87.12,87.063,24.8313]
[1646579549295,0.64659995,87.118,87.04,37.9134705]
[1646579549499,0.65272456,87.115,87.04,24.1334705]
[1646579549695,0.69480653,87.112,87.04,24.1334705]
[1646579549998,2.29017548,87.109,87.027,24.1334705]
[1646579550195,17.2402,87.09,87.027,24.1334705]
[1646579550395,30.04446264,87.089,87.027,24.1334705]
[1646579550799,0.74106264,87.087,87.028,57.83279169]
[1646579550995,8.03317548,87.087,87.028,57.83279169]
[1646579551196,1.54911284,87.086,87.028,57.83279169]
[1646579551398,5.743,87.087,87.028,57.83279169]
[1646579551796,7.29211284,87.087,87.03,17.24]
[1646579552000,1.54911284,87.085,87.03,17.24]
[1646579552198,5.743,87.084,87.03,17.24]
[1646579552598,5.743,87.085,87.03,17.24]
[1646579554700,5.743,87.087,87.03,41.3734705]
[1646579555400,1.54911284,87.088,87.03,41.3734705]
[1646579555598,23.5604,87.089,87.03,57.98960576]
[1646579556698,23.5604,87.089,87.031,114.6]
[1646579556899,5.743,87.104,87.04,17.2307]
[1646579557103,28.5531,87.111,87.04,31.0107]
[1646579557299,22.8111,87.111,87.04,31.0107]
[1646579557500,22.8111,87.111,87.041,26.96960576]
[1646579557900,22.8111,87.111,87.042,26.96960576]
[1646579558300,22.8111,87.111,87.043,26.96960576]
[1646579558701,22.8111,87.111,87.044,24.1334705]
[1646579559201,22.8111,87.111,87.06,17.2299]
[1646579559401,22.8111,87.111,87.061,59.86338831]
[1646579560003,22.8111,87.111,87.062,2.83613526]
[1646579560214,22.8111,87.111,87.07,17.2297]
[1646579560603,22.8111,87.111,87.071,2.83613526]
[1646579561414,22.8111,87.111,87.08,17.2272]
[1646579561807,22.7811,87.111,87.08,17.2272]
[1646579564706,22.7811,87.111,87.071,2.83613526]
[1646579565008,22.7811,87.111,87.061,59.86338831]
[1646579565227,5.74,87.11,87.061,59.86338831]
[1646579565528,22.7811,87.111,87.061,59.86338831]
[1646579566729,24.33021284,87.111,87.061,59.86338831]
[1646579566930,22.7811,87.111,87.061,59.86338831]
[1646579567130,22.7811,87.111,87.07,17.2322]
[1646579570534,1.54911284,87.109,87.07,17.2322]
[1646579570733,7.28911284,87.11,87.07,17.2322]
[1646579570936,1.54911284,87.109,87.07,17.2322]
[1646579572136,1.54911284,87.107,87.07,17.2322]
[1646579572338,5.74,87.106,87.07,17.2322]
[1646579573438,1.54911284,87.107,87.07,17.2322]
[1646579573941,1.54911284,87.106,87.07,17.2322]
[1646579574842,1.54911284,87.107,87.07,17.2322]
[1646579575239,1.54911284,87.104,87.07,17.2322]
[1646579576339,1.54911284,87.103,87.07,17.2322]
[1646579576539,1.54911284,87.104,87.07,17.2322]
[1646579576743,1.54911284,87.107,87.07,17.2322]
[1646579578242,1.54911284,87.105,87.07,17.2322]
[1646579578442,1.54911284,87.104,87.07,17.2322]
[1646579579145,1.54911284,87.105,87.07,17.2322]
[1646579579345,1.54911284,87.105,87.061,59.86338831]
[1646579579546,1.54911284,87.099,87.05,2.83613526]
[1646579579746,1.54911284,87.097,87.039,2.83613526]
[1646579580046,1.54911284,87.089,87.022,17.6331]
[1646579580244,1.54911284,87.086,87.022,17.6331]
[1646579580446,2.23265014,87.085,87.022,17.6331]
[1646579580648,26.20491282,87.085,87.023,55.58776106]
[1646579580846,1.54911284,87.084,87.023,55.58776106]
[1646579581048,2.23265014,87.083,87.023,55.58776106]
[1646579581246,1.54911284,87.081,87.03,17.2409]
[1646579581447,1.54911284,87.082,87.03,17.2409]
[1646579582547,1.54911284,87.081,87.03,17.2409]
[1646579582748,1.54911284,87.082,87.03,17.2409]
[1646579584249,1.54911284,87.081,87.03,17.2409]
[1646579585249,1.54911284,87.08,87.03,17.2409]
[1646579585653,1.54911284,87.081,87.03,17.2409]
[1646579586652,1.54911284,87.08,87.03,17.2409]
[1646579586852,1.54911284,87.081,87.03,17.2409]
[1646579587252,1.54911284,87.083,87.03,17.2409]
[1646579587452,5.743,87.082,87.03,17.2409]
[1646579588653,7.29211284,87.082,87.03,17.2409]
[1646579589752,5.743,87.082,87.03,17.2409]
[1646579590152,7.29211284,87.082,87.03,17.2409]
[1646579590353,5.743,87.082,87.03,17.2409]
[1646579591153,1.54911284,87.083,87.03,20.07703526]
[1646579592156,1.04911284,87.083,87.03,20.07703526]
[1646579592555,55.50774284,87.098,87.03,20.07703526]
[1646579593957,3.06142266,87.107,87.03,20.07703526]
[1646579594157,3.06142266,87.108,87.03,20.07703526]
[1646579594358,3.06142266,87.107,87.03,20.07703526]
[1646579594558,3.06142266,87.106,87.03,20.07703526]
[1646579594959,52.20162136,87.105,87.03,20.07703526]
[1646579595162,6.28220501,87.104,87.03,20.07703526]
[1646579595359,5.742,87.103,87.03,20.07703526]
[1646579595562,6.28220501,87.102,87.03,20.07703526]
[1646579595759,5.742,87.101,87.03,20.07703526]
[1646579596163,6.28220501,87.1,87.03,20.07703526]
[1646579596459,5.742,87.099,87.03,20.07703526]
[1646579596660,6.28220501,87.098,87.03,20.07703526]
[1646579596860,5.742,87.097,87.03,20.07703526]
[1646579597059,5.742,87.104,87.03,20.07703526]
[1646579597260,6.28225492,87.103,87.03,20.07703526]
[1646579597462,5.742,87.102,87.03,20.07703526]
[1646579597662,6.28225492,87.101,87.03,20.07703526]
[1646579597862,5.742,87.1,87.03,20.07703526]
[1646579598265,6.28225492,87.099,87.03,20.07703526]
[1646579598464,5.742,87.098,87.03,20.07703526]
[1646579598882,5.742,87.104,87.03,20.07703526]
[1646579599085,6.28227557,87.103,87.03,20.07703526]
[1646579599288,5.742,87.102,87.03,20.07703526]
[1646579599484,30.42686857,87.101,87.03,20.07703526]
[1646579599685,0.57191763,87.099,87.03,20.07703526]
[1646579599885,0.57191763,87.097,87.03,20.07703526]
[1646579600085,0.57191763,87.095,87.03,20.07703526]
[1646579600285,0.57191763,87.093,87.03,20.07703526]
[1646579600485,0.57191763,87.091,87.03,20.07703526]
[1646579600686,5.743,87.09,87.03,20.07703526]
[1646579601487,22.5855,87.091,87.03,33.85703526]
[1646579601688,22.5855,87.091,87.031,138.7334705]
[1646579601886,26.43302266,87.121,87.04,17.2294]
[1646579602088,28.86646458,87.12,87.05,13.78]
[1646579602286,28.86646458,87.12,87.051,70.31312606]
[1646579602287,6.28096458,87.119,87.051,70.31312606]
[1646579602488,6.28096458,87.119,87.052,5.741]
[1646579602685,6.28096458,87.119,87.052,8.57713526]
[1646579603087,6.28096458,87.119,87.053,2.83613526]
[1646579603288,6.28096458,87.119,87.07,17.2307]
[1646579603688,5.74,87.118,87.07,17.2307]
[1646579604087,6.28096458,87.117,87.07,17.2307]
[1646579604289,5.74,87.116,87.07,17.2307]
[1646579604490,6.28096458,87.115,87.07,17.2307]
[1646579604689,5.74,87.114,87.07,17.2307]
[1646579605290,5.74,87.119,87.07,17.2307]
[1646579605490,6.28099889,87.118,87.07,17.2307]
[1646579605690,5.74,87.117,87.07,17.2307]
[1646579605891,6.28099889,87.116,87.07,17.2307]
[1646579606289,6.28099889,87.118,87.07,17.2307]
[1646579606496,5.74,87.117,87.07,17.2307]
[1646579606891,5.74,87.119,87.07,17.2307]
[1646579607091,6.28089564,87.118,87.07,17.2307]
[1646579607291,5.74,87.117,87.07,17.2307]
[1646579607893,5.74,87.119,87.07,17.2307]
[1646579608293,6.28087559,87.118,87.07,17.2307]
[1646579608494,5.74,87.117,87.07,17.2307]
[1646579608694,6.28087559,87.116,87.07,17.2307]
[1646579608896,5.74,87.115,87.07,17.2307]
[1646579609197,6.28087559,87.114,87.07,17.2307]
[1646579609398,5.74,87.119,87.07,17.2307]
[1646579609795,6.28093445,87.118,87.07,17.2307]
[1646579609998,5.74,87.117,87.07,17.2307]
[1646579610198,6.28093445,87.116,87.07,17.2307]
[1646579610400,5.74,87.115,87.07,17.2307]
[1646579610796,5.74,87.119,87.07,17.2307]
[1646579610996,6.28091516,87.118,87.07,17.2307]
[1646579611197,5.74,87.117,87.07,17.2307]
[1646579611400,6.28091516,87.116,87.07,17.2307]
[1646579611600,5.74,87.115,87.07,17.2307]
[1646579612099,5.74,87.119,87.07,17.2307]
[1646579612299,6.28091514,87.118,87.07,17.2307]
[1646579612499,5.74,87.117,87.07,17.2307]
[1646579612700,6.28091514,87.116,87.07,17.2307]
[1646579612899,5.74,87.115,87.07,17.2307]
[1646579613299,5.74,87.119,87.07,17.2307]
[1646579613699,6.28092014,87.118,87.07,17.2307]
[1646579614402,5.74,87.117,87.07,17.2307]
[1646579614605,5.74,87.117,87.062,5.74]
[1646579614801,6.81612384,87.116,87.062,5.74]
[1646579615102,3.06142266,87.109,87.062,5.74]
[1646579615304,3.06142266,87.106,87.062,5.74]
[1646579615501,114.6,87.104,87.062,5.74]
[1646579615701,17.2387,87.1,87.062,5.74]
[1646579616001,12.74350281,87.099,87.062,5.74]
[1646579616401,6.28092014,87.098,87.04,17.2374]
[1646579616600,6.46458267,87.097,87.021,24.3]
[1646579616801,6.28092014,87.096,87.021,24.3]
[1646579617003,6.46558267,87.095,87.021,24.3]
[1646579617205,6.28092014,87.094,87.021,24.3]
[1646579617402,6.46558267,87.093,87.022,46.65398488]
[1646579617602,6.28092014,87.092,87.022,46.65398488]
[1646579617803,6.28092014,87.092,87.03,17.2406]
[1646579618201,5.743,87.091,87.03,17.2406]
[1646579618804,5.743,87.093,87.03,17.2406]
[1646579619003,6.28276066,87.092,87.03,17.2406]
[1646579619202,5.743,87.091,87.03,17.2406]
[1646579619604,5.743,87.093,87.03,17.2406]
[1646579620603,0.39913794,87.089,87.03,17.2406]
[1646579620801,17.2406,87.09,87.03,17.2406]
[1646579620802,0.43389917,87.087,87.03,17.2406]
[1646579621002,0.43389917,87.088,87.03,17.2406]
[1646579621202,5.743,87.087,87.03,17.2406]
[1646579621404,0.43389917,87.086,87.03,17.2406]
[1646579621703,5.743,87.089,87.03,17.2406]
[1646579624407,114.6,87.088,87.03,17.2406]
[1646579624610,114.6,87.086,87.03,17.2406]
[1646579624906,114.6,87.084,87.03,17.2406]
[1646579625129,5.743,87.083,87.03,17.2406]
[1646579625308,23.519,87.082,87.03,17.2406]
[1646579625506,5.743,87.081,87.03,17.2406]
[1646579626909,5.743,87.099,87.04,17.2342]
[1646579627310,6.28257816,87.098,87.04,17.2342]
[1646579627510,29.261,87.097,87.04,17.2342]
[1646579629013,29.261,87.097,87.05,17.2339]
[1646579629212,29.261,87.097,87.051,54.13153153]
[1646579630012,29.261,87.097,87.06,17.2348]
[1646579630412,23.519,87.097,87.06,17.2348]
[1646579632514,23.519,87.097,87.051,54.13153153]
[1646579633536,0.43360528,87.096,87.04,17.2389]
[1646579633736,0.58124591,87.093,87.021,2.83613526]
[1646579633939,0.6645812,87.091,87.015,2.83613526]
[1646579634137,0.6645812,87.089,87.015,2.83613526]
[1646579634336,6.28273713,87.088,87.006,23.9084]
[1646579634536,0.6645812,87.086,87.016,59.90761634]
[1646579634839,0.6645812,87.084,87.016,59.90761634]
[1646579635236,22.5233,87.085,87.016,59.90761634]
[1646579635237,22.5233,87.085,87.03,17.2406]
[1646579635837,5.743,87.084,87.03,17.2406]
[1646579636036,5.743,87.084,87.031,5.743]
[1646579638437,22.5233,87.085,87.031,5.743]
[1646579638838,5.743,87.084,87.03,17.2406]
[1646579640339,120.343,87.084,87.019,5.743]
[1646579640538,6.28348494,87.083,87.02,17.2427]
[1646579640738,5.743,87.082,87.02,17.2427]
[1646579641139,5.743,87.083,87.02,17.2427]
[1646579641338,5.743,87.084,87.02,17.2427]
[1646579641737,6.28350982,87.083,87.02,17.2427]
[1646579641938,5.743,87.082,87.02,17.2427]
[1646579642138,5.743,87.084,87.02,17.2427]
[1646579642339,6.28356246,87.081,87.02,17.2427]
[1646579642540,5.743,87.08,87.02,17.2427]
[1646579642842,5.743,87.082,87.02,17.2427]
[1646579643040,5.743,87.084,87.02,17.2427]
[1646579643240,6.28350142,87.081,87.02,17.2427]
[1646579643540,5.743,87.08,87.02,17.2427]
[1646579643740,5.743,87.084,87.021,5.743]
[1646579643940,6.28349129,87.083,87.03,17.2402]
[1646579644142,5.743,87.082,87.03,17.2402]
[1646579644541,6.28349129,87.081,87.03,17.2402]
[1646579644745,5.743,87.08,87.03,17.2402]
[1646579645142,6.28349129,87.079,87.03,17.2402]
[1646579645348,5.743,87.078,87.03,17.2402]
[1646579645542,6.28349129,87.077,87.03,17.2402]
[1646579645741,5.743,87.076,87.03,17.2402]
[1646579646342,5.743,87.083,87.03,17.2402]
[1646579646544,6.28347758,87.082,87.03,17.2402]
[1646579646744,5.743,87.081,87.03,17.2402]
[1646579646943,6.28347758,87.08,87.03,17.2402]
[1646579647144,5.743,87.079,87.03,17.2402]
[1646579647345,6.28347758,87.078,87.03,17.2402]
[1646579647543,5.743,87.077,87.03,17.2402]
[1646579647946,5.743,87.083,87.03,17.2402]
[1646579648346,6.28346712,87.082,87.03,17.2402]
[1646579648546,5.743,87.081,87.03,17.2402]
[1646579648749,6.28346712,87.08,87.03,17.2402]
[1646579648946,5.743,87.079,87.03,17.2402]
[1646579649146,6.28346712,87.078,87.03,17.2402]
[1646579649345,5.743,87.077,87.03,17.2402]
[1646579649747,5.743,87.084,87.03,17.2402]
[1646579649947,25.58472266,87.085,87.03,17.2402]
[1646579650147,6.28347865,87.083,87.03,17.2402]
[1646579650347,6.28347865,87.084,87.03,17.2402]
[1646579651451,5.743,87.083,87.03,17.2402]
[1646579651852,6.28347865,87.082,87.03,17.2402]
[1646579652051,5.743,87.081,87.03,17.2402]
[1646579652250,6.28347865,87.08,87.03,17.2402]
[1646579652450,5.743,87.079,87.03,17.2402]
[1646579652652,6.28347865,87.078,87.03,17.2402]
[1646579653053,6.28347865,87.083,87.03,17.2402]
[1646579654151,6.28347865,87.084,87.03,17.2402]
[1646579656656,3.06142266,87.092,87.03,17.2402]
[1646579656857,3.06142266,87.092,87.04,17.2289]
[1646579657057,3.06142266,87.11,87.04,17.2289]
[1646579657257,5.742,87.109,87.041,25.49627243]
[1646579657456,5.742,87.112,87.041,25.49627243]
[1646579657657,5.742,87.112,87.042,2.83613526]
[1646579657857,5.742,87.112,87.06,17.2307]
[1646579658359,23.3957,87.113,87.06,17.2307]
[1646579662057,5.74,87.112,87.06,17.2307]
[1646579662659,23.3957,87.113,87.06,17.2307]
[1646579666765,5.74,87.112,87.06,17.2307]
[1646579667565,23.3957,87.113,87.06,17.2307]
[1646579667966,5.74,87.112,87.06,17.2307]
[1646579672269,17.2367,87.11,87.06,17.2307]
[1646579672469,0.4352355,87.108,87.05,17.2373]
[1646579672870,6.28252544,87.107,87.05,17.2373]
[1646579673072,0.4352355,87.106,87.05,17.2373]
[1646579673471,6.28252544,87.105,87.05,17.2373]
[1646579673675,9.3439481,87.109,87.05,17.2373]
[1646579674079,114.6,87.108,87.05,17.2373]
[1646579674271,114.6,87.099,87.043,24.3753]
[1646579674472,115.07789062,87.097,87.043,24.3753]
[1646579674672,114.6,87.095,87.028,22.66013717]
[1646579674871,0.47789062,87.094,87.029,24.8434]
[1646579675075,0.47789062,87.092,87.029,24.8434]
[1646579675273,0.47789062,87.09,87.029,24.8434]
[1646579675473,0.47789062,87.088,87.029,24.8434]
[1646579675673,24.01098512,87.088,87.029,24.8434]
[1646579675874,24.01098512,87.088,87.03,17.2407]
[1646579676075,0.47789062,87.086,87.03,17.2407]
[1646579676479,0.47789062,87.084,87.03,17.2407]
[1646579676874,5.743,87.083,87.032,84.56123889]
[1646579677074,5.743,87.086,87.032,84.56123889]
[1646579677274,114.6,87.085,87.03,17.2407]
[1646579677476,0.52391322,87.078,87.01,2.83613526]
[1646579677681,0.54950737,87.075,87.001,24.8941]
[1646579677875,6.28414431,87.084,87.001,24.8941]
[1646579677876,0.54950737,87.073,87.001,24.8941]
[1646579678078,0.54950737,87.071,87.001,24.8941]
[1646579678277,5.744,87.07,87.002,62.35278018]
[1646579678476,5.744,87.07,87.01,17.2445]
[1646579678679,5.744,87.072,87.01,17.2445]
[1646579682580,24.3527,87.073,87.01,17.2445]
[1646579682981,5.744,87.072,87.01,17.2445]
[1646579685086,5.744,87.072,87.02,17.2425]
[1646579687289,24.3527,87.073,87.02,17.2425]
[1646579689708,5.744,87.072,87.02,17.2425]
[1646579689908,24.3527,87.073,87.02,17.2425]
[1646579690709,24.3527,87.073,87.021,5.744]
[1646579690910,24.3527,87.073,87.031,64.07348877]
[1646579692110,24.3527,87.073,87.04,17.2395]
[1646579693612,24.3527,87.073,87.031,64.07348877]
[1646579694013,5.743,87.072,87.031,64.07348877]
[1646579695413,5.743,87.072,87.03,17.2411]
[1646579695614,5.743,87.072,87.02,17.2432]
[1646579697118,17.2448,87.07,87.02,17.2432]
[1646579697317,5.744,87.069,87.02,17.2432]
[1646579698820,17.2462,87.06,87.01,17.245]
[1646579699019,28.5915,87.059,87.0,200.0]
[1646579699820,17.78187174,87.058,87.001,56.47241463]
[1646579700021,5.745,87.057,87.001,56.47241463]
[1646579700922,22.8475,87.059,87.001,56.47241463]
[1646579701122,22.8475,87.059,87.01,17.2454]
[1646579706527,3.06142266,87.074,87.01,17.2454]
[1646579706728,6.28405196,87.078,87.011,114.6]
[1646579706933,8.80542266,87.092,87.03,17.232]
[1646579707130,5.744,87.092,87.03,17.232]
[1646579707529,6.28262799,87.091,87.031,49.05772721]
[1646579707729,5.743,87.09,87.031,49.05772721]
[1646579708330,5.743,87.092,87.031,49.05772721]
[1646579709132,5.743,87.092,87.04,17.2359]
[1646579709532,22.8075,87.093,87.04,17.2359]
[1646579709932,5.742,87.092,87.04,17.2359]
[1646579710132,12.02484877,87.092,87.04,17.2359]
[1646579710534,6.28284877,87.091,87.04,17.2359]
[1646579710734,5.742,87.09,87.04,17.2359]
[1646579710936,120.88284877,87.089,87.005,2.83613526]
[1646579711235,3.06142266,87.081,87.006,24.456]
[1646579711437,3.06142266,87.079,87.006,24.456]
[1646579711638,114.6,87.077,87.006,24.456]
[1646579711836,132.67060934,87.075,87.007,57.85777434]
[1646579712037,126.62684877,87.074,87.007,57.85777434]
[1646579712238,1.55313665,87.052,87.007,57.85777434]
[1646579712435,1.55313665,87.051,87.007,57.85777434]
[1646579713135,1.55313665,87.051,87.01,17.2453]
[1646579717844,1.55313665,87.052,87.01,17.2453]
[1646579718044,1.55313665,87.053,87.01,17.2453]
[1646579718546,1.45313665,87.055,87.01,20.08143526]
[1646579719347,1.45313665,87.055,87.01,17.2453]
[1646579720247,5.744,87.066,87.01,17.2453]
[1646579720650,3.06142266,87.079,87.01,17.2453]
[1646579720850,3.06142266,87.08,87.011,2.83613526]
[1646579721051,3.06142266,87.08,87.03,17.2409]
[1646579721252,3.06142266,87.079,87.03,17.2409]
[1646579721452,6.28413071,87.079,87.03,16.7409]
[1646579721652,3.06142266,87.079,87.03,16.7409]
[1646579721852,6.28413071,87.078,87.03,16.7409]
[1646579722052,3.06142266,87.079,87.03,16.7409]
[1646579722765,3.06142266,87.079,87.02,17.2429]
[1646579723274,9.34555337,87.078,87.02,17.2429]
[1646579723465,3.06142266,87.078,87.02,17.2429]
[1646579723867,5.743,87.077,87.02,17.2429]
[1646579724165,6.28413071,87.076,87.02,17.2429]
[1646579724365,5.743,87.075,87.02,17.2429]
[1646579724566,6.28413071,87.074,87.02,17.2429]
[1646579724768,5.744,87.073,87.02,17.2429]
[1646579724967,6.28413071,87.072,87.02,17.2429]
[1646579725172,29.3579,87.071,87.02,17.2429]
[1646579725366,6.28413071,87.07,87.02,17.2429]
[1646579725571,5.744,87.069,87.02,17.2429]
[1646579726269,5.744,87.07,87.02,17.2429]
[1646579727071,23.6139,87.071,87.02,17.2429]
[1646579727478,6.28413706,87.07,87.02,17.2429]
[1646579728372,3.06142266,87.082,87.03,17.2334]
[1646579728573,3.06142266,87.094,87.03,17.2334]
[1646579730180,5.743,87.089,87.03,20.06953526]
[1646579730376,8.80442266,87.089,87.03,20.06953526]
[1646579730579,6.28283364,87.088,87.03,20.06953526]
[1646579730778,5.743,87.087,87.03,20.06953526]
[1646579731078,6.28283364,87.086,87.03,20.06953526]
[1646579731777,23.098,87.088,87.03,20.06953526]
[1646579731979,23.098,87.088,87.03,17.2334]
[1646579732177,6.28291629,87.087,87.031,2.83613526]
[1646579732378,6.28291629,87.087,87.04,17.2374]
[1646579732578,6.28291629,87.087,87.041,57.08914571]
[1646579733980,23.098,87.088,87.041,57.08914571]
[1646579734180,23.098,87.088,87.05,17.237]
[1646579734380,5.742,87.087,87.05,17.237]
[1646579734581,23.098,87.088,87.05,17.237]
[1646579739587,23.098,87.088,87.032,24.5835]
[1646579739785,0.48108047,87.086,87.032,24.5835]
[1646579739986,0.48108047,87.084,87.032,24.5835]
[1646579740285,6.28344655,87.083,87.032,24.5835]
[1646579740487,0.48108047,87.082,87.032,24.5835]
[1646579740686,6.28344655,87.081,87.033,59.17169069]
[1646579740886,6.28344655,87.085,87.033,59.17169069]
[1646579741086,5.743,87.084,87.04,17.2397]
[1646579741287,6.28344655,87.083,87.04,17.2397]
[1646579741685,6.28344655,87.086,87.04,17.2397]
[1646579741885,5.742,87.085,87.04,17.2397]
[1646579742285,6.28344655,87.084,87.04,17.2397]
[1646579742885,6.28344655,87.086,87.04,17.2397]
[1646579743086,6.28344655,87.087,87.04,17.2397]
[1646579743485,23.098,87.088,87.04,17.2397]
[1646579747895,6.28307889,87.087,87.04,17.2397]
[1646579748095,5.742,87.086,87.04,17.2397]
[1646579748294,6.28307889,87.085,87.04,17.2397]
[1646579748491,5.743,87.084,87.04,17.2397]
[1646579748891,5.743,87.087,87.04,17.2397]
[1646579749292,6.28326634,87.086,87.04,17.2397]
[1646579749494,5.742,87.085,87.04,17.2397]
[1646579749693,6.28326634,87.084,87.04,17.2397]
[1646579749893,5.743,87.083,87.04,17.2397]
[1646579750095,6.28326634,87.082,87.04,17.2397]
[1646579750294,5.743,87.081,87.04,17.2397]
[1646579750694,5.743,87.087,87.04,17.2397]
[1646579750898,6.2834215,87.086,87.04,17.2397]
[1646579751096,5.742,87.085,87.04,17.2397]
[1646579751500,6.2834215,87.084,87.04,17.2397]
[1646579751701,5.743,87.083,87.04,17.2397]
[1646579752099,6.2834215,87.082,87.04,17.2397]
[1646579752299,5.743,87.081,87.04,17.2397]
[1646579752704,6.2834215,87.08,87.04,17.2397]
[1646579752906,5.743,87.079,87.04,17.2397]
[1646579753105,6.2834215,87.078,87.04,17.2397]
[1646579753305,5.743,87.077,87.04,17.2397]
[1646579753508,40.11329232,87.077,87.04,17.2397]
[1646579753706,34.37029232,87.077,87.03,17.2414]
[1646579753908,24.28865291,87.076,87.001,23.5367]
[1646579754108,0.49815599,87.074,87.001,23.5367]
[1646579754307,0.49815599,87.072,87.001,23.5367]
[1646579754507,0.49815599,87.07,87.001,23.5367]
[1646579754707,12.02824924,87.069,87.002,46.12404146]
[1646579754908,6.28424924,87.068,87.01,17.2448]
[1646579755107,5.744,87.067,87.01,17.2448]
[1646579755507,6.28424924,87.066,87.01,17.2448]
[1646579755708,5.744,87.065,87.01,17.2448]
[1646579755908,22.8238,87.064,87.01,17.2448]
[1646579756110,5.744,87.063,87.01,17.2448]
[1646579758019,22.8238,87.064,87.01,17.2448]
[1646579758420,22.8238,87.064,87.01,20.08093526]
[1646579762424,5.744,87.078,87.011,114.6]
[1646579762625,5.744,87.078,87.03,17.2362]
[1646579762825,3.06142266,87.079,87.03,17.2362]
[1646579762826,3.06142266,87.088,87.031,114.6]
[1646579763026,3.06142266,87.092,87.041,114.6]
[1646579763225,3.06142266,87.115,87.05,13.78]
[1646579763426,4.66837723,87.14,87.05,13.78]
[1646579763427,3.06142266,87.12,87.052,114.6]
[1646579763626,3.06142266,87.129,87.07,17.2238]
[1646579763828,5.74,87.128,87.07,31.0038]
[1646579764028,5.74,87.137,87.071,2.83613526]
[1646579764227,6.28021878,87.136,87.071,32.2630671]
[1646579764427,5.74,87.135,87.072,29.42693184]
[1646579764730,6.28021878,87.134,87.072,32.2630671]
[1646579765131,6.28021878,87.137,87.09,17.2274]
[1646579765430,5.739,87.136,87.091,55.94072268]
[1646579765730,6.28021878,87.135,87.091,55.94072268]
[1646579765930,5.739,87.134,87.091,55.94072268]
[1646579766129,3.06142266,87.142,87.091,55.94072268]